{"text_format":"1","workbook":"xlsx","n_sheets":23,"sheets":["Enero","Febrero","Marzo","Abril","MAYO","JUNIO","JULIO","AGTO","OCTUBRE","01-17","02-17","03-17","04-17","05-17","06-17","07-17","08-17","09-17","10-17","11-17","12-17","08-18","09-18"],"not_rendered":{"charts":0,"images":1,"macros":0,"external_links":0,"defined_names":4,"comments":0,"pivot_tables":0},"unopened":[],"bounds":{"document_bytes":16777216,"sheet_cells":100000,"rows_first":2000,"rows_last":500,"rows_between":2000,"halvings":0,"cell_chars":16384,"cell_head_chars":4096},"cells_cut":0,"cells_raw":0,"read":"whole","date_system":"1900"}

{"sheet":"Enero","index":0,"n_rows":26,"n_cols":6,"rows_kept":26,"cut":false,"hidden":false,"merged":[[25,0,25,3],[20,0,20,3],[22,0,22,3],[23,0,23,3],[25,4,25,5],[24,0,24,3],[22,4,22,5],[23,4,23,5],[24,4,24,5],[20,4,20,5],[0,0,0,5],[1,0,1,5],[21,4,21,5],[21,0,21,3],[19,0,19,5],[8,3,8,4],[4,0,5,0],[6,0,7,0],[11,0,12,0],[13,0,15,0],[2,0,2,5],[4,5,8,5],[9,0,9,5],[11,5,16,5],[17,0,18,4],[16,3,16,4]]}
["Art. 7 de la Ley Orgánica de Transparencia y Acceso a la Información Pública - LOTAIP"]
["g) Información total sobre el presupuesto anual que administra la institución, especificando ingresos, gastos, financiamiento y resultados operativos de conformidad con los clasificadores presupuestales, así como liquidación del presupuesto, especificando destinatarios de entrega de recursos públicos"]
["Monto total del presupuesto anual 2015"]
["Tipo","Ingresos","Gastos","Financiamiento","Resultados operativos \n(% de gestión cumplida)","Link para descargar la cédula presupuestaria mensual a nivel de tipo de gasto"]
["Corriente",7452741.3500000006,659510.14,"Fondos Fiscales",{"$f":"C5/B5","v":8.8492288813967757E-2},"cédula presupuestaria enero 2015"]
[null,46776521,3139365.98,"Preasignaciónes",{"$f":"C6/B6","v":6.711414001909205E-2}]
["Inversión",5264263.72,55133.23,"Fondos Fiscales",{"$f":"C7/B7","v":1.0473113227693693E-2}]
[null,1936353.12,0,"Crédito Interno / Externo",{"$f":"C8/B8","v":0}]
["Total",{"$f":"SUM(B5:B8)","v":61429879.189999998},{"$f":"SUM(C5:C8)","v":3854009.35},{"$f":"C9/B9","v":6.27383514475051E-2}]
["Monto total del presupuesto anual liquidado (ejercicio fiscal 2014)"]
["Tipo","Ingresos","Gastos","Financiamiento","Resultados operativos \n(% de gestión cumplida)","Link para descargar el presupuesto anual liquidado"]
["Corriente",4667649.7200000007,4616565.0199999996,"Fondos Fiscales",{"$f":"C12/B12","v":0.98905558405955085},"presupuesto anual liquidado 2014"]
[null,36889049,36833711.020000003,"Preasignaciónes",{"$f":"C13/B13","v":0.99849988054720529}]
["Inversión",8700559.2599999998,7441430.9100000001,"Fondos Fiscales",{"$f":"C14/B14","v":0.85528190632655954}]
[null,1742000,1352730.02,"Preasignaciónes",{"$f":"C15/B15","v":0.77653847301951784}]
[null,0,0,"Crédito Interno / Externo",{"$f":"C16/B16","v":{"$error":"#DIV/0!"}}]
["Total",{"$f":"SUM(B12:B16)","v":51999257.979999997},{"$f":"SUM(C12:C16)","v":50244436.970000006},{"$f":"C17/B17","v":0.96625296055811161}]
["Destinatario de entrega de recursos públicos",null,null,null,null,"Link para descargar el listado de destinatarios de recursos públicos"]
[null,null,null,null,null,"Destinatarios recursos públicos mensual"]
[]
["FECHA ACTUALIZACIÓN DE LA INFORMACIÓN:",null,null,null,"DD/MM/AAAA (31/01/2015)"]
["PERIODICIDAD DE ACTUALIZACIÓN DE LA INFORMACIÓN:",null,null,null,"MENSUAL"]
["UNIDAD POSEEDORA DE LA INFORMACIÓN - LITERAL g):",null,null,null,"DIRECCIÓN FINANIERA O A QUIEN LE CORRESPONDA"]
["RESPONSABLE DE LA UNIDAD POSEEDORA DE LA INFORMACIÓN DEL LITERAL g):",null,null,null,"NOMBRE DEL O LA TITULAR DE LA UNIDAD RESPONSABLE"]
["CORREO ELECTRÓNICO DEL O LA RESPONSABLE DE LA UNIDAD POSEEDORA DE LA INFORMACIÓN:",null,null,null,"correo electrónico del o la titular de la unidad responsable"]
["NÚMERO TELEFÓNICO DEL O LA RESPONSABLE DE LA UNIDAD POSEEDORA DE LA INFORMACIÓN:",null,null,null,"(02) 243-4461 EXTENSIÓN 215 (Número de teléfono y extensión)"]

{"sheet":"Febrero","index":1,"n_rows":26,"n_cols":6,"rows_kept":26,"cut":false,"hidden":false,"merged":[[0,0,0,5],[1,0,1,5],[2,0,2,5],[4,0,5,0],[4,5,8,5],[6,0,7,0],[8,3,8,4],[22,0,22,3],[22,4,22,5],[9,0,9,5],[11,0,12,0],[11,5,16,5],[13,0,15,0],[16,3,16,4],[17,0,18,4],[19,0,19,5],[20,0,20,3],[20,4,20,5],[21,0,21,3],[21,4,21,5],[23,0,23,3],[23,4,23,5],[24,0,24,3],[24,4,24,5],[25,0,25,3],[25,4,25,5]]}
["Art. 7 de la Ley Orgánica de Transparencia y Acceso a la Información Pública - LOTAIP"]
["g) Información total sobre el presupuesto anual que administra la institución, especificando ingresos, gastos, financiamiento y resultados operativos de conformidad con los clasificadores presupuestales, así como liquidación del presupuesto, especificando destinatarios de entrega de recursos públicos"]
["Monto total del presupuesto anual 2015"]
["Tipo","Ingresos","Gastos","Financiamiento","Resultados operativos \n(% de gestión cumplida)","Link para descargar la cédula presupuestaria mensual a nivel de tipo de gasto"]
["Corriente",7452741.3500000006,1395250.28,"Fondos Fiscales",{"$f":"C5/B5","v":0.18721302866629069},"cédula presupuestaria enero 2015"]
[null,46776521,6821433.0499999998,"Preasignaciónes",{"$f":"C6/B6","v":0.14583027775836513}]
["Inversión",5264263.72,135190.26999999999,"Fondos Fiscales",{"$f":"C7/B7","v":2.5680755598619591E-2}]
[null,1936353.12,0,"Crédito Interno / Externo",{"$f":"C8/B8","v":0}]
["Total",{"$f":"SUM(B5:B8)","v":61429879.189999998},{"$f":"SUM(C5:C8)","v":8351873.5999999996},{"$f":"C9/B9","v":0.13595783859785904}]
["Monto total del presupuesto anual liquidado (ejercicio fiscal 2014)"]
["Tipo","Ingresos","Gastos","Financiamiento","Resultados operativos \n(% de gestión cumplida)","Link para descargar el presupuesto anual liquidado"]
["Corriente",4667649.7200000007,4616565.0199999996,"Fondos Fiscales",{"$f":"C12/B12","v":0.98905558405955085},"presupuesto anual liquidado 2014"]
[null,36889049,36833711.020000003,"Preasignaciónes",{"$f":"C13/B13","v":0.99849988054720529}]
["Inversión",8700559.2599999998,7441430.9100000001,"Fondos Fiscales",{"$f":"C14/B14","v":0.85528190632655954}]
[null,1742000,1352730.02,"Preasignaciónes",{"$f":"C15/B15","v":0.77653847301951784}]
[null,0,0,"Crédito Interno / Externo",{"$f":"C16/B16","v":{"$error":"#DIV/0!"}}]
["Total",{"$f":"SUM(B12:B16)","v":51999257.979999997},{"$f":"SUM(C12:C16)","v":50244436.970000006},{"$f":"C17/B17","v":0.96625296055811161}]
["Destinatario de entrega de recursos públicos",null,null,null,null,"Link para descargar el listado de destinatarios de recursos públicos"]
[null,null,null,null,null,"Destinatarios recursos públicos mensual"]
[]
["FECHA ACTUALIZACIÓN DE LA INFORMACIÓN:",null,null,null,"DD/MM/AAAA (31/01/2015)"]
["PERIODICIDAD DE ACTUALIZACIÓN DE LA INFORMACIÓN:",null,null,null,"MENSUAL"]
["UNIDAD POSEEDORA DE LA INFORMACIÓN - LITERAL g):",null,null,null,"DIRECCIÓN FINANIERA O A QUIEN LE CORRESPONDA"]
["RESPONSABLE DE LA UNIDAD POSEEDORA DE LA INFORMACIÓN DEL LITERAL g):",null,null,null,"NOMBRE DEL O LA TITULAR DE LA UNIDAD RESPONSABLE"]
["CORREO ELECTRÓNICO DEL O LA RESPONSABLE DE LA UNIDAD POSEEDORA DE LA INFORMACIÓN:",null,null,null,"correo electrónico del o la titular de la unidad responsable"]
["NÚMERO TELEFÓNICO DEL O LA RESPONSABLE DE LA UNIDAD POSEEDORA DE LA INFORMACIÓN:",null,null,null,"(02) 243-4461 EXTENSIÓN 215 (Número de teléfono y extensión)"]

{"sheet":"Marzo","index":2,"n_rows":26,"n_cols":6,"rows_kept":26,"cut":false,"hidden":false,"merged":[[0,0,0,5],[1,0,1,5],[2,0,2,5],[4,0,5,0],[4,5,8,5],[6,0,7,0],[8,3,8,4],[22,0,22,3],[22,4,22,5],[9,0,9,5],[11,0,12,0],[11,5,16,5],[13,0,15,0],[16,3,16,4],[17,0,18,4],[19,0,19,5],[20,0,20,3],[20,4,20,5],[21,0,21,3],[21,4,21,5],[23,0,23,3],[23,4,23,5],[24,0,24,3],[24,4,24,5],[25,0,25,3],[25,4,25,5]]}
["Art. 7 de la Ley Orgánica de Transparencia y Acceso a la Información Pública - LOTAIP"]
["g) Información total sobre el presupuesto anual que administra la institución, especificando ingresos, gastos, financiamiento y resultados operativos de conformidad con los clasificadores presupuestales, así como liquidación del presupuesto, especificando destinatarios de entrega de recursos públicos"]
["Monto total del presupuesto anual 2015"]
["Tipo","Ingresos","Gastos","Financiamiento","Resultados operativos \n(% de gestión cumplida)","Link para descargar la cédula presupuestaria mensual a nivel de tipo de gasto"]
["Corriente",7452741.3500000006,1828561.81,"Fondos Fiscales",{"$f":"C5/B5","v":0.2453542561221449},"cédula presupuestaria enero 2015"]
[null,46776521,10517755.970000001,"Preasignaciónes",{"$f":"C6/B6","v":0.22485118057411754}]
["Inversión",5264263.72,519129.37,"Fondos Fiscales",{"$f":"C7/B7","v":9.8613860857259636E-2}]
[null,1936353.12,0,"Crédito Interno / Externo",{"$f":"C8/B8","v":0}]
["Total",{"$f":"SUM(B5:B8)","v":61429879.189999998},{"$f":"SUM(C5:C8)","v":12865447.15},{"$f":"C9/B9","v":0.20943305309469551}]
["Monto total del presupuesto anual liquidado (ejercicio fiscal 2014)"]
["Tipo","Ingresos","Gastos","Financiamiento","Resultados operativos \n(% de gestión cumplida)","Link para descargar el presupuesto anual liquidado"]
["Corriente",4667649.7200000007,4616565.0199999996,"Fondos Fiscales",{"$f":"C12/B12","v":0.98905558405955085},"presupuesto anual liquidado 2014"]
[null,36889049,36833711.020000003,"Preasignaciónes",{"$f":"C13/B13","v":0.99849988054720529}]
["Inversión",8700559.2599999998,7441430.9100000001,"Fondos Fiscales",{"$f":"C14/B14","v":0.85528190632655954}]
[null,1742000,1352730.02,"Preasignaciónes",{"$f":"C15/B15","v":0.77653847301951784}]
[null,0,0,"Crédito Interno / Externo",{"$f":"C16/B16","v":{"$error":"#DIV/0!"}}]
["Total",{"$f":"SUM(B12:B16)","v":51999257.979999997},{"$f":"SUM(C12:C16)","v":50244436.970000006},{"$f":"C17/B17","v":0.96625296055811161}]
["Destinatario de entrega de recursos públicos",null,null,null,null,"Link para descargar el listado de destinatarios de recursos públicos"]
[null,null,null,null,null,"Destinatarios recursos públicos mensual"]
[]
["FECHA ACTUALIZACIÓN DE LA INFORMACIÓN:",null,null,null,"DD/MM/AAAA (31/01/2015)"]
["PERIODICIDAD DE ACTUALIZACIÓN DE LA INFORMACIÓN:",null,null,null,"MENSUAL"]
["UNIDAD POSEEDORA DE LA INFORMACIÓN - LITERAL g):",null,null,null,"DIRECCIÓN FINANIERA O A QUIEN LE CORRESPONDA"]
["RESPONSABLE DE LA UNIDAD POSEEDORA DE LA INFORMACIÓN DEL LITERAL g):",null,null,null,"NOMBRE DEL O LA TITULAR DE LA UNIDAD RESPONSABLE"]
["CORREO ELECTRÓNICO DEL O LA RESPONSABLE DE LA UNIDAD POSEEDORA DE LA INFORMACIÓN:",null,null,null,"correo electrónico del o la titular de la unidad responsable"]
["NÚMERO TELEFÓNICO DEL O LA RESPONSABLE DE LA UNIDAD POSEEDORA DE LA INFORMACIÓN:",null,null,null,"(02) 243-4461 EXTENSIÓN 215 (Número de teléfono y extensión)"]

{"sheet":"Abril","index":3,"n_rows":26,"n_cols":6,"rows_kept":26,"cut":false,"hidden":false,"merged":[[0,0,0,5],[1,0,1,5],[2,0,2,5],[4,0,5,0],[4,5,8,5],[6,0,7,0],[8,3,8,4],[22,0,22,3],[22,4,22,5],[9,0,9,5],[11,0,12,0],[11,5,16,5],[13,0,15,0],[16,3,16,4],[17,0,18,4],[19,0,19,5],[20,0,20,3],[20,4,20,5],[21,0,21,3],[21,4,21,5],[23,0,23,3],[23,4,23,5],[24,0,24,3],[24,4,24,5],[25,0,25,3],[25,4,25,5]]}
["Art. 7 de la Ley Orgánica de Transparencia y Acceso a la Información Pública - LOTAIP"]
["g) Información total sobre el presupuesto anual que administra la institución, especificando ingresos, gastos, financiamiento y resultados operativos de conformidad con los clasificadores presupuestales, así como liquidación del presupuesto, especificando destinatarios de entrega de recursos públicos"]
["Monto total del presupuesto anual 2015"]
["Tipo","Ingresos","Gastos","Financiamiento","Resultados operativos \n(% de gestión cumplida)","Link para descargar la cédula presupuestaria mensual a nivel de tipo de gasto"]
["Corriente",7452741.3500000006,2360276.1800000002,"Fondos Fiscales",{"$f":"C5/B5","v":0.31669906000427617},"cédula presupuestaria enero 2015"]
[null,46776521,13583575.93,"Preasignaciónes",{"$f":"C6/B6","v":0.29039303564281749}]
["Inversión",5264263.72,858548.08,"Fondos Fiscales",{"$f":"C7/B7","v":0.16308986890953101}]
[null,1936353.12,697189.64,"Crédito Interno / Externo",{"$f":"C8/B8","v":0.36005294323589077}]
["Total",{"$f":"SUM(B5:B8)","v":61429879.189999998},{"$f":"SUM(C5:C8)","v":17499589.829999998},{"$f":"C9/B9","v":0.28487097908616282}]
["Monto total del presupuesto anual liquidado (ejercicio fiscal 2014)"]
["Tipo","Ingresos","Gastos","Financiamiento","Resultados operativos \n(% de gestión cumplida)","Link para descargar el presupuesto anual liquidado"]
["Corriente",4667649.7200000007,4616565.0199999996,"Fondos Fiscales",{"$f":"C12/B12","v":0.98905558405955085},"presupuesto anual liquidado 2014"]
[null,36889049,36833711.020000003,"Preasignaciónes",{"$f":"C13/B13","v":0.99849988054720529}]
["Inversión",8700559.2599999998,7441430.9100000001,"Fondos Fiscales",{"$f":"C14/B14","v":0.85528190632655954}]
[null,1742000,1352730.02,"Preasignaciónes",{"$f":"C15/B15","v":0.77653847301951784}]
[null,0,0,"Crédito Interno / Externo",0]
["Total",{"$f":"SUM(B12:B16)","v":51999257.979999997},{"$f":"SUM(C12:C16)","v":50244436.970000006},{"$f":"C17/B17","v":0.96625296055811161}]
["Destinatario de entrega de recursos públicos",null,null,null,null,"Link para descargar el listado de destinatarios de recursos públicos"]
[null,null,null,null,null,"Destinatarios recursos públicos mensual"]
[]
["FECHA ACTUALIZACIÓN DE LA INFORMACIÓN:",null,null,null,"DD/MM/AAAA (31/01/2015)"]
["PERIODICIDAD DE ACTUALIZACIÓN DE LA INFORMACIÓN:",null,null,null,"MENSUAL"]
["UNIDAD POSEEDORA DE LA INFORMACIÓN - LITERAL g):",null,null,null,"DIRECCIÓN FINANIERA O A QUIEN LE CORRESPONDA"]
["RESPONSABLE DE LA UNIDAD POSEEDORA DE LA INFORMACIÓN DEL LITERAL g):",null,null,null,"NOMBRE DEL O LA TITULAR DE LA UNIDAD RESPONSABLE"]
["CORREO ELECTRÓNICO DEL O LA RESPONSABLE DE LA UNIDAD POSEEDORA DE LA INFORMACIÓN:",null,null,null,"correo electrónico del o la titular de la unidad responsable"]
["NÚMERO TELEFÓNICO DEL O LA RESPONSABLE DE LA UNIDAD POSEEDORA DE LA INFORMACIÓN:",null,null,null,"(02) 243-4461 EXTENSIÓN 215 (Número de teléfono y extensión)"]

{"sheet":"MAYO","index":4,"n_rows":26,"n_cols":6,"rows_kept":26,"cut":false,"hidden":false,"merged":[[0,0,0,5],[1,0,1,5],[2,0,2,5],[4,0,5,0],[4,5,8,5],[6,0,7,0],[8,3,8,4],[22,0,22,3],[22,4,22,5],[9,0,9,5],[11,0,12,0],[11,5,16,5],[13,0,15,0],[16,3,16,4],[17,0,18,4],[19,0,19,5],[20,0,20,3],[20,4,20,5],[21,0,21,3],[21,4,21,5],[23,0,23,3],[23,4,23,5],[24,0,24,3],[24,4,24,5],[25,0,25,3],[25,4,25,5]]}
["Art. 7 de la Ley Orgánica de Transparencia y Acceso a la Información Pública - LOTAIP"]
["g) Información total sobre el presupuesto anual que administra la institución, especificando ingresos, gastos, financiamiento y resultados operativos de conformidad con los clasificadores presupuestales, así como liquidación del presupuesto, especificando destinatarios de entrega de recursos públicos"]
["Monto total del presupuesto anual 2015"]
["Tipo","Ingresos","Gastos","Financiamiento","Resultados operativos \n(% de gestión cumplida)","Link para descargar la cédula presupuestaria mensual a nivel de tipo de gasto"]
["Corriente",7452741.3500000006,2719403.98,"Fondos Fiscales",{"$f":"C5/B5","v":0.36488640250476423},"cédula presupuestaria enero 2015"]
[null,46776521,16554293.77,"Preasignaciónes",{"$f":"C6/B6","v":0.35390177414006485}]
["Inversión",5264263.72,1096072.67,"Fondos Fiscales",{"$f":"C7/B7","v":0.2082100609503659}]
[null,1936353.12,697189.64,"Crédito Interno / Externo",{"$f":"C8/B8","v":0.36005294323589077}]
["Total",{"$f":"SUM(B5:B8)","v":61429879.189999998},{"$f":"SUM(C5:C8)","v":21066960.060000002},{"$f":"C9/B9","v":0.34294321163876612}]
["Monto total del presupuesto anual liquidado (ejercicio fiscal 2014)"]
["Tipo","Ingresos","Gastos","Financiamiento","Resultados operativos \n(% de gestión cumplida)","Link para descargar el presupuesto anual liquidado"]
["Corriente",4667649.7200000007,4616565.0199999996,"Fondos Fiscales",{"$f":"C12/B12","v":0.98905558405955085},"presupuesto anual liquidado 2014"]
[null,36889049,36833711.020000003,"Preasignaciónes",{"$f":"C13/B13","v":0.99849988054720529}]
["Inversión",8700559.2599999998,7441430.9100000001,"Fondos Fiscales",{"$f":"C14/B14","v":0.85528190632655954}]
[null,1742000,1352730.02,"Preasignaciónes",{"$f":"C15/B15","v":0.77653847301951784}]
[null,0,0,"Crédito Interno / Externo",0]
["Total",{"$f":"SUM(B12:B16)","v":51999257.979999997},{"$f":"SUM(C12:C16)","v":50244436.970000006},{"$f":"C17/B17","v":0.96625296055811161}]
["Destinatario de entrega de recursos públicos",null,null,null,null,"Link para descargar el listado de destinatarios de recursos públicos"]
[null,null,null,null,null,"Destinatarios recursos públicos mensual"]
[]
["FECHA ACTUALIZACIÓN DE LA INFORMACIÓN:",null,null,null,"DD/MM/AAAA (31/01/2015)"]
["PERIODICIDAD DE ACTUALIZACIÓN DE LA INFORMACIÓN:",null,null,null,"MENSUAL"]
["UNIDAD POSEEDORA DE LA INFORMACIÓN - LITERAL g):",null,null,null,"DIRECCIÓN FINANIERA O A QUIEN LE CORRESPONDA"]
["RESPONSABLE DE LA UNIDAD POSEEDORA DE LA INFORMACIÓN DEL LITERAL g):",null,null,null,"NOMBRE DEL O LA TITULAR DE LA UNIDAD RESPONSABLE"]
["CORREO ELECTRÓNICO DEL O LA RESPONSABLE DE LA UNIDAD POSEEDORA DE LA INFORMACIÓN:",null,null,null,"correo electrónico del o la titular de la unidad responsable"]
["NÚMERO TELEFÓNICO DEL O LA RESPONSABLE DE LA UNIDAD POSEEDORA DE LA INFORMACIÓN:",null,null,null,"(02) 243-4461 EXTENSIÓN 215 (Número de teléfono y extensión)"]

{"sheet":"JUNIO","index":5,"n_rows":26,"n_cols":6,"rows_kept":26,"cut":false,"hidden":false,"merged":[[25,0,25,3],[25,4,25,5],[22,0,22,3],[22,4,22,5],[23,0,23,3],[23,4,23,5],[24,0,24,3],[24,4,24,5],[17,0,18,4],[19,0,19,5],[20,0,20,3],[20,4,20,5],[21,0,21,3],[21,4,21,5],[9,0,9,5],[11,0,12,0],[11,5,16,5],[13,0,15,0],[16,3,16,4],[0,0,0,5],[1,0,1,5],[2,0,2,5],[4,0,5,0],[4,5,8,5],[6,0,7,0],[8,3,8,4]]}
["Art. 7 de la Ley Orgánica de Transparencia y Acceso a la Información Pública - LOTAIP"]
["g) Información total sobre el presupuesto anual que administra la institución, especificando ingresos, gastos, financiamiento y resultados operativos de conformidad con los clasificadores presupuestales, así como liquidación del presupuesto, especificando destinatarios de entrega de recursos públicos"]
["Monto total del presupuesto anual 2015"]
["Tipo","Ingresos","Gastos","Financiamiento","Resultados operativos \n(% de gestión cumplida)","Link para descargar la cédula presupuestaria mensual a nivel de tipo de gasto"]
["Corriente",8884096,0,"Fondos Fiscales",{"$f":"C5/B5","v":0},"cédula presupuestaria JUNIO 2015"]
[null,46776521,46036483.600000001,"Preasignaciónes",{"$f":"C6/B6","v":0.98417929798584214}]
["Inversión",1346103,8333829.8300000001,"Fondos Fiscales",{"$f":"C7/B7","v":6.1910788624644626}]
[null,1936353.12,560000,"Crédito Interno / Externo",{"$f":"C8/B8","v":0.28920344859412833}]
["Total",null,7200]
["Monto total del presupuesto anual liquidado (ejercicio fiscal 2014)"]
["Tipo","Ingresos","Gastos","Financiamiento","Resultados operativos \n(% de gestión cumplida)","Link para descargar el presupuesto anual liquidado"]
["Corriente","4,483,699,77","4,007,733,99","Fondos Fiscales",{"$f":"C12/B12","v":{"$error":"#VALUE!"}},"presupuesto JUNIO  liquidado 2015"]
[null,"20,894,130,26","19,499,415,80","Preasignaciónes",{"$f":"C13/B13","v":{"$error":"#VALUE!"}}]
["Inversión","1,346,103,00","2,031,867,99","Fondos Fiscales",{"$f":"C14/B14","v":{"$error":"#VALUE!"}}]
[null,null,null,"Preasignaciónes",{"$f":"C15/B15","v":{"$error":"#DIV/0!"}}]
[null,"1,936,353,12","231,792,76","Crédito Interno / Externo",0]
["Total",{"$f":"SUM(B12:B16)","v":0},{"$f":"SUM(C12:C16)","v":0},{"$f":"C17/B17","v":{"$error":"#DIV/0!"}}]
["Destinatario de entrega de recursos públicos",null,null,null,null,"Link para descargar el listado de destinatarios de recursos públicos"]
[null,null,null,null,null,"Destinatarios recursos públicos mensual"]
[]
["FECHA ACTUALIZACIÓN DE LA INFORMACIÓN:",null,null,null,"2015-06-30"]
["PERIODICIDAD DE ACTUALIZACIÓN DE LA INFORMACIÓN:",null,null,null,"MENSUAL"]
["UNIDAD POSEEDORA DE LA INFORMACIÓN - LITERAL g):",null,null,null,"UNIVERSIDAD LAQICA ELOY ALFARO DE MANABI"]
["RESPONSABLE DE LA UNIDAD POSEEDORA DE LA INFORMACIÓN DEL LITERAL g):",null,null,null,"DRA. AMALIA REYES MOREIRA"]
["CORREO ELECTRÓNICO DEL O LA RESPONSABLE DE LA UNIDAD POSEEDORA DE LA INFORMACIÓN:",null,null,null,"correo electrónico del o la titular de la unidad responsable"]
["NÚMERO TELEFÓNICO DEL O LA RESPONSABLE DE LA UNIDAD POSEEDORA DE LA INFORMACIÓN:",null,null,null,"(02) 243-4461 EXTENSIÓN 215 (Número de teléfono y extensión)"]

{"sheet":"JULIO","index":6,"n_rows":26,"n_cols":6,"rows_kept":26,"cut":false,"hidden":false,"merged":[[0,0,0,5],[1,0,1,5],[2,0,2,5],[4,0,5,0],[4,5,8,5],[6,0,7,0],[8,3,8,4],[22,0,22,3],[22,4,22,5],[9,0,9,5],[11,0,12,0],[11,5,16,5],[13,0,15,0],[16,3,16,4],[17,0,18,4],[19,0,19,5],[20,0,20,3],[20,4,20,5],[21,0,21,3],[21,4,21,5],[23,0,23,3],[23,4,23,5],[24,0,24,3],[24,4,24,5],[25,0,25,3],[25,4,25,5]]}
["Art. 7 de la Ley Orgánica de Transparencia y Acceso a la Información Pública - LOTAIP"]
["g) Información total sobre el presupuesto anual que administra la institución, especificando ingresos, gastos, financiamiento y resultados operativos de conformidad con los clasificadores presupuestales, así como liquidación del presupuesto, especificando destinatarios de entrega de recursos públicos"]
["Monto total del presupuesto anual 2015"]
["Tipo","Ingresos","Gastos","Financiamiento","Resultados operativos \n(% de gestión cumplida)","Link para descargar la cédula presupuestaria mensual a nivel de tipo de gasto"]
["Corriente",7452741.3500000006,3712110.59,"Fondos Fiscales",{"$f":"C5/B5","v":0.49808659869834332},"cédula presupuestaria julio 2015"]
[null,46776521,23718471.789999999,"Preasignaciónes",{"$f":"C6/B6","v":0.50705933838046657}]
["Inversión",5264263.72,1376889.35,"Fondos Fiscales",{"$f":"C7/B7","v":0.26155402222136398}]
[null,1936353.12,1055985.1399999999,"Crédito Interno / Externo",{"$f":"C8/B8","v":0.54534740027170248}]
["Total",{"$f":"SUM(B5:B8)","v":61429879.189999998},{"$f":"SUM(C5:C8)","v":29863456.870000001},{"$f":"C9/B9","v":0.48613894840381505}]
["Monto total del presupuesto anual liquidado (ejercicio fiscal 2014)"]
["Tipo","Ingresos","Gastos","Financiamiento","Resultados operativos \n(% de gestión cumplida)","Link para descargar el presupuesto anual liquidado"]
["Corriente",4667649.7200000007,4616565.0199999996,"Fondos Fiscales",{"$f":"C12/B12","v":0.98905558405955085},"presupuesto anual liquidado 2014"]
[null,36889049,36833711.020000003,"Preasignaciónes",{"$f":"C13/B13","v":0.99849988054720529}]
["Inversión",8700559.2599999998,7441430.9100000001,"Fondos Fiscales",{"$f":"C14/B14","v":0.85528190632655954}]
[null,1742000,1352730.02,"Preasignaciónes",{"$f":"C15/B15","v":0.77653847301951784}]
[null,0,0,"Crédito Interno / Externo",0]
["Total",{"$f":"SUM(B12:B16)","v":51999257.979999997},{"$f":"SUM(C12:C16)","v":50244436.970000006},{"$f":"C17/B17","v":0.96625296055811161}]
["Destinatario de entrega de recursos públicos",null,null,null,null,"Link para descargar el listado de destinatarios de recursos públicos"]
[null,null,null,null,null,"Destinatarios recursos públicos mensual"]
[]
["FECHA ACTUALIZACIÓN DE LA INFORMACIÓN:",null,null,null,"DD/MM/AAAA (31/01/2015)"]
["PERIODICIDAD DE ACTUALIZACIÓN DE LA INFORMACIÓN:",null,null,null,"MENSUAL"]
["UNIDAD POSEEDORA DE LA INFORMACIÓN - LITERAL g):",null,null,null,"DIRECCIÓN FINANIERA O A QUIEN LE CORRESPONDA"]
["RESPONSABLE DE LA UNIDAD POSEEDORA DE LA INFORMACIÓN DEL LITERAL g):",null,null,null,"NOMBRE DEL O LA TITULAR DE LA UNIDAD RESPONSABLE"]
["CORREO ELECTRÓNICO DEL O LA RESPONSABLE DE LA UNIDAD POSEEDORA DE LA INFORMACIÓN:",null,null,null,"correo electrónico del o la titular de la unidad responsable"]
["NÚMERO TELEFÓNICO DEL O LA RESPONSABLE DE LA UNIDAD POSEEDORA DE LA INFORMACIÓN:",null,null,null,"(02) 243-4461 EXTENSIÓN 215 (Número de teléfono y extensión)"]

{"sheet":"AGTO","index":7,"n_rows":26,"n_cols":6,"rows_kept":26,"cut":false,"hidden":false,"merged":[[25,0,25,3],[25,4,25,5],[22,0,22,3],[22,4,22,5],[23,0,23,3],[23,4,23,5],[24,0,24,3],[24,4,24,5],[17,0,18,4],[19,0,19,5],[20,0,20,3],[20,4,20,5],[21,0,21,3],[21,4,21,5],[9,0,9,5],[11,0,12,0],[11,5,16,5],[13,0,15,0],[16,3,16,4],[0,0,0,5],[1,0,1,5],[2,0,2,5],[4,0,5,0],[4,5,8,5],[6,0,7,0],[8,3,8,4]]}
["Art. 7 de la Ley Orgánica de Transparencia y Acceso a la Información Pública - LOTAIP"]
["g) Información total sobre el presupuesto anual que administra la institución, especificando ingresos, gastos, financiamiento y resultados operativos de conformidad con los clasificadores presupuestales, así como liquidación del presupuesto, especificando destinatarios de entrega de recursos públicos"]
["Monto total del presupuesto anual 2015"]
["Tipo","Ingresos","Gastos","Financiamiento","Resultados operativos \n(% de gestión cumplida)","Link para descargar la cédula presupuestaria mensual a nivel de tipo de gasto"]
["Corriente",7452741.3499999996,3985218.87,"Fondos Fiscales",{"$f":"C5/B5","v":0.53473194397119395},"cédula presupuestaria julio 2015"]
[null,46776521,27457415.370000001,"Preasignaciónes",{"$f":"C6/B6","v":0.58699139617501694}]
["Inversión",5264263.72,1823494.8,"Fondos Fiscales",{"$f":"C7/B7","v":0.34639123284651857}]
[null,1936353.12,1055985.1399999999,"Crédito Interno / Externo",{"$f":"C8/B8","v":0.54534740027170248}]
["Total",{"$f":"SUM(B5:B8)","v":61429879.189999998},{"$f":"SUM(C5:C8)","v":34322114.18},{"$f":"C9/B9","v":0.55872019663009853}]
["Monto total del presupuesto anual liquidado (ejercicio fiscal 2014)"]
["Tipo","Ingresos","Gastos","Financiamiento","Resultados operativos \n(% de gestión cumplida)","Link para descargar el presupuesto anual liquidado"]
["Corriente",4667649.7200000007,4616565.0199999996,"Fondos Fiscales",{"$f":"C12/B12","v":0.98905558405955085},"presupuesto anual liquidado 2014"]
[null,36889049,36833711.020000003,"Preasignaciónes",{"$f":"C13/B13","v":0.99849988054720529}]
["Inversión",8700559.2599999998,7441430.9100000001,"Fondos Fiscales",{"$f":"C14/B14","v":0.85528190632655954}]
[null,1742000,1352730.02,"Preasignaciónes",{"$f":"C15/B15","v":0.77653847301951784}]
[null,0,0,"Crédito Interno / Externo",0]
["Total",{"$f":"SUM(B12:B16)","v":51999257.979999997},{"$f":"SUM(C12:C16)","v":50244436.970000006},{"$f":"C17/B17","v":0.96625296055811161}]
["Destinatario de entrega de recursos públicos",null,null,null,null,"Link para descargar el listado de destinatarios de recursos públicos"]
[null,null,null,null,null,"Destinatarios recursos públicos mensual"]
[]
["FECHA ACTUALIZACIÓN DE LA INFORMACIÓN:",null,null,null,"DD/MM/AAAA (31/08/2015)"]
["PERIODICIDAD DE ACTUALIZACIÓN DE LA INFORMACIÓN:",null,null,null,"AGOSTO"]
["UNIDAD POSEEDORA DE LA INFORMACIÓN - LITERAL g):",null,null,null,"DIRECCIÓN FINANIERA "]
["RESPONSABLE DE LA UNIDAD POSEEDORA DE LA INFORMACIÓN DEL LITERAL g):",null,null,null,"ING. DAVID FARFAN"]
["CORREO ELECTRÓNICO DEL O LA RESPONSABLE DE LA UNIDAD POSEEDORA DE LA INFORMACIÓN:",null,null,null,"correo electrónico del o la titular de la unidad responsable"]
["NÚMERO TELEFÓNICO DEL O LA RESPONSABLE DE LA UNIDAD POSEEDORA DE LA INFORMACIÓN:",null,null,null,"(02) 622-744-EXTENSIÓN-252 (david.farfan@uleam.edu.ec)"]

{"sheet":"OCTUBRE","index":8,"n_rows":26,"n_cols":6,"rows_kept":26,"cut":false,"hidden":false,"merged":[[0,0,0,5],[1,0,1,5],[2,0,2,5],[4,0,5,0],[4,5,8,5],[6,0,7,0],[8,3,8,4],[22,0,22,3],[22,4,22,5],[9,0,9,5],[11,0,12,0],[11,5,16,5],[13,0,15,0],[16,3,16,4],[17,0,18,4],[19,0,19,5],[20,0,20,3],[20,4,20,5],[21,0,21,3],[21,4,21,5],[23,0,23,3],[23,4,23,5],[24,0,24,3],[24,4,24,5],[25,0,25,3],[25,4,25,5]]}
["Art. 7 de la Ley Orgánica de Transparencia y Acceso a la Información Pública - LOTAIP"]
["g) Información total sobre el presupuesto anual que administra la institución, especificando ingresos, gastos, financiamiento y resultados operativos de conformidad con los clasificadores presupuestales, así como liquidación del presupuesto, especificando destinatarios de entrega de recursos públicos"]
["Monto total del presupuesto anual 2015"]
["Tipo","Ingresos","Gastos","Financiamiento","Resultados operativos \n(% de gestión cumplida)","Link para descargar la cédula presupuestaria mensual a nivel de tipo de gasto"]
["Corriente",7452741.3499999996,4426679.38,"Fondos Fiscales",{"$f":"C5/B5","v":0.59396659190379664},"cédula presupuestaria julio 2015"]
[null,46776521,35667663.640000001,"Preasignaciónes",{"$f":"C6/B6","v":0.76251210815785131}]
["Inversión",5264263.72,3069280.73,"Fondos Fiscales",{"$f":"C7/B7","v":0.58304083785528893}]
[null,1936353.12,0,"Crédito Interno / Externo",{"$f":"C8/B8","v":0}]
["Total",{"$f":"SUM(B5:B8)","v":61429879.189999998},{"$f":"SUM(C5:C8)","v":43163623.75},{"$f":"C9/B9","v":0.70264868365599009}]
["Monto total del presupuesto anual liquidado (ejercicio fiscal 2014)"]
["Tipo","Ingresos","Gastos","Financiamiento","Resultados operativos \n(% de gestión cumplida)","Link para descargar el presupuesto anual liquidado"]
["Corriente",4667649.7200000007,4616565.0199999996,"Fondos Fiscales",{"$f":"C12/B12","v":0.98905558405955085},"presupuesto anual liquidado 2014"]
[null,36889049,36833711.020000003,"Preasignaciónes",{"$f":"C13/B13","v":0.99849988054720529}]
["Inversión",8700559.2599999998,7441430.9100000001,"Fondos Fiscales",{"$f":"C14/B14","v":0.85528190632655954}]
[null,1742000,1352730.02,"Preasignaciónes",{"$f":"C15/B15","v":0.77653847301951784}]
[null,0,0,"Crédito Interno / Externo",0]
["Total",{"$f":"SUM(B12:B16)","v":51999257.979999997},{"$f":"SUM(C12:C16)","v":50244436.970000006},{"$f":"C17/B17","v":0.96625296055811161}]
["Destinatario de entrega de recursos públicos",null,null,null,null,"Link para descargar el listado de destinatarios de recursos públicos"]
[null,null,null,null,null,"Destinatarios recursos públicos mensual"]
[]
["FECHA ACTUALIZACIÓN DE LA INFORMACIÓN:",null,null,null,"DD/MM/AAAA (31/08/2015)"]
["PERIODICIDAD DE ACTUALIZACIÓN DE LA INFORMACIÓN:",null,null,null,"AGOSTO"]
["UNIDAD POSEEDORA DE LA INFORMACIÓN - LITERAL g):",null,null,null,"DIRECCIÓN FINANIERA "]
["RESPONSABLE DE LA UNIDAD POSEEDORA DE LA INFORMACIÓN DEL LITERAL g):",null,null,null,"ING. DAVID FARFAN"]
["CORREO ELECTRÓNICO DEL O LA RESPONSABLE DE LA UNIDAD POSEEDORA DE LA INFORMACIÓN:",null,null,null,"correo electrónico del o la titular de la unidad responsable"]
["NÚMERO TELEFÓNICO DEL O LA RESPONSABLE DE LA UNIDAD POSEEDORA DE LA INFORMACIÓN:",null,null,null,"(02) 622-744-EXTENSIÓN-252 (david.farfan@uleam.edu.ec)"]

{"sheet":"01-17","index":9,"n_rows":24,"n_cols":6,"rows_kept":24,"cut":false,"hidden":false,"merged":[[23,0,23,3],[23,4,23,5],[20,0,20,3],[20,4,20,5],[21,0,21,3],[21,4,21,5],[22,0,22,3],[22,4,22,5],[15,0,16,4],[17,0,17,5],[18,0,18,3],[18,4,18,5],[19,0,19,3],[19,4,19,5],[8,0,8,5],[10,0,11,0],[10,5,14,5],[12,0,13,0],[14,3,14,4],[0,0,0,5],[1,0,1,5],[3,0,4,0],[3,5,7,5],[5,0,6,0],[7,3,7,4]]}
["g) Información total sobre el presupuesto anual que administra la institución, especificando ingresos, gastos, financiamiento y resultados operativos de conformidad con los clasificadores presupuestales, así como liquidación del presupuesto, especificando destinatarios de entrega de recursos públicos"]
["Monto total del presupuesto anual 2016"]
["Tipo","Ingresos","Gastos","Financiamiento","Resultados operativos \n(% de gestión cumplida)","Link para descargar la cédula presupuestaria mensual a nivel de tipo de gasto"]
["Corriente",8819525,35855.11,"Fondos Fiscales",{"$f":"C4/B4","v":4.0654241583305221E-3}," ENERO-2017"]
[null,45533178,3668155.36,"Preasignaciónes",{"$f":"C5/B5","v":8.0560055790527066E-2}]
["Inversión",1477848,0,"Fondos Fiscales",{"$f":"C6/B6","v":0}]
[null,0,0,"Crédito Interno / Externo",0]
["Total",{"$f":"SUM(B4:B7)","v":55830551},{"$f":"SUM(C4:C7)","v":3704010.4699999997},{"$f":"C8/B8","v":6.6343792129151646E-2}]
["Monto total del presupuesto anual liquidado (ejercicio fiscal 2015)"]
["Tipo","Ingresos","Gastos","Financiamiento","Resultados operativos \n(% de gestión cumplida)","Link para descargar el presupuesto anual liquidado"]
["Corriente",8659869.5700000003,7239173.3499999996,"Fondos Fiscales",{"$f":"C11/B11","v":0.83594484783908807},"presupuesto anual liquidado 2016"]
[null,45533178,45359549.560000002,"Preasignaciónes",{"$f":"C12/B12","v":0.99618677088605589}]
["Inversión",6249304.71,5090753.26,"Fondos Fiscales",{"$f":"C13/B13","v":0.81461114415718738}]
[null,0,0,"Crédito Interno / Externo",0]
["Total",{"$f":"SUM(B11:B14)","v":60442352.280000001},{"$f":"SUM(C11:C14)","v":57689476.170000002},{"$f":"C15/B15","v":0.95445451730191999}]
["Destinatario de entrega de recursos públicos",null,null,null,null,"Link para descargar el listado de destinatarios de recursos públicos"]
[null,null,null,null,null,"Destinatarios recursos públicos mensual"]
[]
["FECHA ACTUALIZACIÓN DE LA INFORMACIÓN:",null,null,null,"DD/MM/AAAA (07/02/2017)"]
["PERIODICIDAD DE ACTUALIZACIÓN DE LA INFORMACIÓN:",null,null,null,"ENERO.2017"]
["UNIDAD POSEEDORA DE LA INFORMACIÓN - LITERAL g):",null,null,null,"DIRECCIÓN FINANIERA "]
["RESPONSABLE DE LA UNIDAD POSEEDORA DE LA INFORMACIÓN DEL LITERAL g):",null,null,null,"ING. SANDRA REYES ALAVA"]
["CORREO ELECTRÓNICO DEL O LA RESPONSABLE DE LA UNIDAD POSEEDORA DE LA INFORMACIÓN:",null,null,null,"sandra.reyes@uleam.edu.ec"]
["NÚMERO TELEFÓNICO DEL O LA RESPONSABLE DE LA UNIDAD POSEEDORA DE LA INFORMACIÓN:",null,null,null,"(02) 622-744-EXTENSIÓN-252"]

{"sheet":"02-17","index":10,"n_rows":24,"n_cols":7,"rows_kept":24,"cut":false,"hidden":false,"merged":[[21,1,21,4],[21,5,21,6],[22,1,22,4],[22,5,22,6],[23,1,23,4],[23,5,23,6],[20,1,20,4],[20,5,20,6],[8,1,8,6],[10,1,11,1],[10,6,14,6],[12,1,13,1],[14,4,14,5],[15,1,16,5],[17,1,17,6],[18,1,18,4],[18,5,18,6],[19,1,19,4],[19,5,19,6],[0,1,0,6],[1,1,1,6],[3,1,4,1],[3,6,7,6],[5,1,6,1],[7,4,7,5]]}
[null,"g) Información total sobre el presupuesto anual que administra la institución, especificando ingresos, gastos, financiamiento y resultados operativos de conformidad con los clasificadores presupuestales, así como liquidación del presupuesto, especificando destinatarios de entrega de recursos públicos"]
[null,"Monto total del presupuesto anual 2016"]
[null,"Tipo","Ingresos","Gastos","Financiamiento","Resultados operativos \n(% de gestión cumplida)","Link para descargar la cédula presupuestaria mensual a nivel de tipo de gasto"]
[null,"Corriente",8819525,158446.38,"Fondos Fiscales",{"$f":"D4/C4","v":1.7965409701769654E-2}," FEBRERO-2017"]
[null,null,45533178,7577679.4199999999,"Preasignaciónes",{"$f":"D5/C5","v":0.16642105279802785}]
[null,"Inversión",1477848,0,"Fondos Fiscales",{"$f":"D6/C6","v":0}]
[null,null,0,0,"Crédito Interno / Externo",0]
[null,"Total",{"$f":"SUM(C4:C7)","v":55830551},{"$f":"SUM(D4:D7)","v":7736125.7999999998},{"$f":"D8/C8","v":0.13856438207102775}]
[null,"Monto total del presupuesto anual liquidado (ejercicio fiscal 2016)"]
[null,"Tipo","Ingresos","Gastos","Financiamiento","Resultados operativos \n(% de gestión cumplida)","Link para descargar el presupuesto anual liquidado"]
[null,"Corriente",8659869.5700000003,7239173.3499999996,"Fondos Fiscales",{"$f":"D11/C11","v":0.83594484783908807},"presupuesto anual liquidado 2016"]
[null,null,45533178,45359549.560000002,"Preasignaciónes",{"$f":"D12/C12","v":0.99618677088605589}]
[null,"Inversión",6249304.71,5090753.26,"Fondos Fiscales",{"$f":"D13/C13","v":0.81461114415718738}]
[null,null,0,0,"Crédito Interno / Externo",0]
[null,"Total",{"$f":"SUM(C11:C14)","v":60442352.280000001},{"$f":"SUM(D11:D14)","v":57689476.170000002},{"$f":"D15/C15","v":0.95445451730191999}]
[null,"Destinatario de entrega de recursos públicos",null,null,null,null,"Link para descargar el listado de destinatarios de recursos públicos"]
[null,null,null,null,null,null,"Destinatarios recursos públicos mensual"]
[]
[null,"FECHA ACTUALIZACIÓN DE LA INFORMACIÓN:",null,null,null,"DD/MM/AAAA (06/03/2017)"]
[null,"PERIODICIDAD DE ACTUALIZACIÓN DE LA INFORMACIÓN:",null,null,null,"FEBRERO.2017"]
[null,"UNIDAD POSEEDORA DE LA INFORMACIÓN - LITERAL g):",null,null,null,"DIRECCIÓN FINANIERA "]
[null,"RESPONSABLE DE LA UNIDAD POSEEDORA DE LA INFORMACIÓN DEL LITERAL g):",null,null,null,"ING. SANDRA REYES ALAVA"]
[null,"CORREO ELECTRÓNICO DEL O LA RESPONSABLE DE LA UNIDAD POSEEDORA DE LA INFORMACIÓN:",null,null,null,"sandra.reyes@uleam.edu.ec"]
[null,"NÚMERO TELEFÓNICO DEL O LA RESPONSABLE DE LA UNIDAD POSEEDORA DE LA INFORMACIÓN:",null,null,null,"(02) 622-744-EXTENSIÓN-252"]

{"sheet":"03-17","index":11,"n_rows":25,"n_cols":6,"rows_kept":25,"cut":false,"hidden":false,"merged":[[22,0,22,3],[22,4,22,5],[23,0,23,3],[23,4,23,5],[24,0,24,3],[24,4,24,5],[21,0,21,3],[21,4,21,5],[9,0,9,5],[11,0,12,0],[11,5,15,5],[13,0,14,0],[15,3,15,4],[16,0,17,4],[18,0,18,5],[19,0,19,3],[19,4,19,5],[20,0,20,3],[20,4,20,5],[1,0,1,5],[2,0,2,5],[4,0,5,0],[4,5,8,5],[6,0,7,0],[8,3,8,4]]}
[]
["g) Información total sobre el presupuesto anual que administra la institución, especificando ingresos, gastos, financiamiento y resultados operativos de conformidad con los clasificadores presupuestales, así como liquidación del presupuesto, especificando destinatarios de entrega de recursos públicos"]
["Monto total del presupuesto anual 2017"]
["Tipo","Ingresos","Gastos","Financiamiento","Resultados operativos \n(% de gestión cumplida)","Link para descargar la cédula presupuestaria mensual a nivel de tipo de gasto"]
["Corriente",8819525,380028.78,"Fondos Fiscales",{"$f":"C5/B5","v":4.3089483844084578E-2}," MARZO -2017"]
[null,45533178,11975117.359999999,"Preasignaciónes",{"$f":"C6/B6","v":0.26299761813243078}]
["Inversión",1477848,13308.36,"Fondos Fiscales",{"$f":"C7/B7","v":9.0052292251977199E-3}]
[null,0,0,"Crédito Interno / Externo",0]
["Total",{"$f":"SUM(B5:B8)","v":55830551},{"$f":"SUM(C5:C8)","v":12368454.499999998},{"$f":"C9/B9","v":0.22153559795603661}]
["Monto total del presupuesto anual liquidado (ejercicio fiscal 2016)"]
["Tipo","Ingresos","Gastos","Financiamiento","Resultados operativos \n(% de gestión cumplida)","Link para descargar el presupuesto anual liquidado"]
["Corriente",8659869.5700000003,7239173.3499999996,"Fondos Fiscales",{"$f":"C12/B12","v":0.83594484783908807},"presupuesto anual liquidado 2016"]
[null,45533178,45359549.560000002,"Preasignaciónes",{"$f":"C13/B13","v":0.99618677088605589}]
["Inversión",6249304.71,5090753.26,"Fondos Fiscales",{"$f":"C14/B14","v":0.81461114415718738}]
[null,0,0,"Crédito Interno / Externo",0]
["Total",{"$f":"SUM(B12:B15)","v":60442352.280000001},{"$f":"SUM(C12:C15)","v":57689476.170000002},{"$f":"C16/B16","v":0.95445451730191999}]
["Destinatario de entrega de recursos públicos",null,null,null,null,"Link para descargar el listado de destinatarios de recursos públicos"]
[null,null,null,null,null,"Destinatarios recursos públicos mensual"]
[]
["FECHA ACTUALIZACIÓN DE LA INFORMACIÓN:",null,null,null,"DD/MM/AAAA (25/04/2017)"]
["PERIODICIDAD DE ACTUALIZACIÓN DE LA INFORMACIÓN:",null,null,null,"MARZO.2017"]
["UNIDAD POSEEDORA DE LA INFORMACIÓN - LITERAL g):",null,null,null,"DIRECCIÓN FINANIERA "]
["RESPONSABLE DE LA UNIDAD POSEEDORA DE LA INFORMACIÓN DEL LITERAL g):",null,null,null,"ING. SANDRA REYES ALAVA"]
["CORREO ELECTRÓNICO DEL O LA RESPONSABLE DE LA UNIDAD POSEEDORA DE LA INFORMACIÓN:",null,null,null,"sandra.reyes@uleam.edu.ec"]
["NÚMERO TELEFÓNICO DEL O LA RESPONSABLE DE LA UNIDAD POSEEDORA DE LA INFORMACIÓN:",null,null,null,"(02) 622-744-EXTENSIÓN-252"]

{"sheet":"04-17","index":12,"n_rows":25,"n_cols":6,"rows_kept":25,"cut":false,"hidden":false,"merged":[[1,0,1,5],[2,0,2,5],[4,0,5,0],[4,5,8,5],[6,0,7,0],[8,3,8,4],[21,0,21,3],[21,4,21,5],[9,0,9,5],[11,0,12,0],[11,5,15,5],[13,0,14,0],[15,3,15,4],[16,0,17,4],[18,0,18,5],[19,0,19,3],[19,4,19,5],[20,0,20,3],[20,4,20,5],[22,0,22,3],[22,4,22,5],[23,0,23,3],[23,4,23,5],[24,0,24,3],[24,4,24,5]]}
[]
["g) Información total sobre el presupuesto anual que administra la institución, especificando ingresos, gastos, financiamiento y resultados operativos de conformidad con los clasificadores presupuestales, así como liquidación del presupuesto, especificando destinatarios de entrega de recursos públicos"]
["Monto total del presupuesto anual 2017"]
["Tipo","Ingresos","Gastos","Financiamiento","Resultados operativos \n(% de gestión cumplida)","Link para descargar la cédula presupuestaria mensual a nivel de tipo de gasto"]
["Corriente",8819525,872646.6,"Fondos Fiscales",{"$f":"C5/B5","v":9.8944852472213643E-2}," ABRIL -2017"]
[null,45533178,15326948.970000001,"Preasignaciónes",{"$f":"C6/B6","v":0.33661056933034633}]
["Inversión",3237384.98,13308.36,"Fondos Fiscales",{"$f":"C7/B7","v":4.1108363948732475E-3}]
[null,0,0,"Crédito Interno / Externo",0]
["Total",{"$f":"SUM(B5:B8)","v":57590087.979999997},{"$f":"SUM(C5:C8)","v":16212903.93},{"$f":"C9/B9","v":0.2815224719856384}]
["Monto total del presupuesto anual liquidado (ejercicio fiscal 2016)"]
["Tipo","Ingresos","Gastos","Financiamiento","Resultados operativos \n(% de gestión cumplida)","Link para descargar el presupuesto anual liquidado"]
["Corriente",8659869.5700000003,7239173.3499999996,"Fondos Fiscales",{"$f":"C12/B12","v":0.83594484783908807},"presupuesto anual liquidado 2016"]
[null,45533178,45359549.560000002,"Preasignaciónes",{"$f":"C13/B13","v":0.99618677088605589}]
["Inversión",6249304.71,5090753.26,"Fondos Fiscales",{"$f":"C14/B14","v":0.81461114415718738}]
[null,0,0,"Crédito Interno / Externo",0]
["Total",{"$f":"SUM(B12:B15)","v":60442352.280000001},{"$f":"SUM(C12:C15)","v":57689476.170000002},{"$f":"C16/B16","v":0.95445451730191999}]
["Destinatario de entrega de recursos públicos",null,null,null,null,"Link para descargar el listado de destinatarios de recursos públicos"]
[null,null,null,null,null,"Destinatarios recursos públicos mensual"]
[]
["FECHA ACTUALIZACIÓN DE LA INFORMACIÓN:",null,null,null,"DD/MM/AAAA (08/05/2017)"]
["PERIODICIDAD DE ACTUALIZACIÓN DE LA INFORMACIÓN:",null,null,null,"ABRIL.2017"]
["UNIDAD POSEEDORA DE LA INFORMACIÓN - LITERAL g):",null,null,null,"DIRECCIÓN FINANIERA "]
["RESPONSABLE DE LA UNIDAD POSEEDORA DE LA INFORMACIÓN DEL LITERAL g):",null,null,null,"ING. SANDRA REYES ALAVA"]
["CORREO ELECTRÓNICO DEL O LA RESPONSABLE DE LA UNIDAD POSEEDORA DE LA INFORMACIÓN:",null,null,null,"sandra.reyes@uleam.edu.ec"]
["NÚMERO TELEFÓNICO DEL O LA RESPONSABLE DE LA UNIDAD POSEEDORA DE LA INFORMACIÓN:",null,null,null,"(02) 622-744-EXTENSIÓN-252"]

{"sheet":"05-17","index":13,"n_rows":25,"n_cols":6,"rows_kept":25,"cut":false,"hidden":false,"merged":[[22,0,22,3],[22,4,22,5],[23,0,23,3],[23,4,23,5],[24,0,24,3],[24,4,24,5],[21,0,21,3],[21,4,21,5],[9,0,9,5],[11,0,12,0],[11,5,15,5],[13,0,14,0],[15,3,15,4],[16,0,17,4],[18,0,18,5],[19,0,19,3],[19,4,19,5],[20,0,20,3],[20,4,20,5],[1,0,1,5],[2,0,2,5],[4,0,5,0],[4,5,8,5],[6,0,7,0],[8,3,8,4]]}
[]
["g) Información total sobre el presupuesto anual que administra la institución, especificando ingresos, gastos, financiamiento y resultados operativos de conformidad con los clasificadores presupuestales, así como liquidación del presupuesto, especificando destinatarios de entrega de recursos públicos"]
["Monto total del presupuesto anual 2017"]
["Tipo","Ingresos","Gastos","Financiamiento","Resultados operativos \n(% de gestión cumplida)","Link para descargar la cédula presupuestaria mensual a nivel de tipo de gasto"]
["Corriente",8819525,1612824.17,"Fondos Fiscales",{"$f":"C5/B5","v":0.18286973164654557}," MAYO -2017"]
[null,45533178,18785995.510000002,"Preasignaciónes",{"$f":"C6/B6","v":0.4125781756327222}]
["Inversión",3253069.98,13308.36,"Fondos Fiscales",{"$f":"C7/B7","v":4.0910155889114933E-3}]
[null,0,0,"Crédito Interno / Externo",0]
["Total",{"$f":"SUM(B5:B8)","v":57605772.979999997},{"$f":"SUM(C5:C8)","v":20412128.039999999},{"$f":"C9/B9","v":0.35434170889585725}]
["Monto total del presupuesto anual liquidado (ejercicio fiscal 2016)"]
["Tipo","Ingresos","Gastos","Financiamiento","Resultados operativos \n(% de gestión cumplida)","Link para descargar el presupuesto anual liquidado"]
["Corriente",8659869.5700000003,7239173.3499999996,"Fondos Fiscales",{"$f":"C12/B12","v":0.83594484783908807},"presupuesto anual liquidado 2016"]
[null,45533178,45359549.560000002,"Preasignaciónes",{"$f":"C13/B13","v":0.99618677088605589}]
["Inversión",6249304.71,5090753.26,"Fondos Fiscales",{"$f":"C14/B14","v":0.81461114415718738}]
[null,0,0,"Crédito Interno / Externo",0]
["Total",{"$f":"SUM(B12:B15)","v":60442352.280000001},{"$f":"SUM(C12:C15)","v":57689476.170000002},{"$f":"C16/B16","v":0.95445451730191999}]
["Destinatario de entrega de recursos públicos",null,null,null,null,"Link para descargar el listado de destinatarios de recursos públicos"]
[null,null,null,null,null,"Destinatarios recursos públicos mensual"]
[]
["FECHA ACTUALIZACIÓN DE LA INFORMACIÓN:",null,null,null,"DD/MM/AAAA (08/05/2017)"]
["PERIODICIDAD DE ACTUALIZACIÓN DE LA INFORMACIÓN:",null,null,null,"MAYO.2017"]
["UNIDAD POSEEDORA DE LA INFORMACIÓN - LITERAL g):",null,null,null,"DIRECCIÓN FINANIERA "]
["RESPONSABLE DE LA UNIDAD POSEEDORA DE LA INFORMACIÓN DEL LITERAL g):",null,null,null,"ING. SANDRA REYES ALAVA"]
["CORREO ELECTRÓNICO DEL O LA RESPONSABLE DE LA UNIDAD POSEEDORA DE LA INFORMACIÓN:",null,null,null,"sandra.reyes@uleam.edu.ec"]
["NÚMERO TELEFÓNICO DEL O LA RESPONSABLE DE LA UNIDAD POSEEDORA DE LA INFORMACIÓN:",null,null,null,"(02) 622-744-EXTENSIÓN-252"]

{"sheet":"06-17","index":14,"n_rows":25,"n_cols":6,"rows_kept":25,"cut":false,"hidden":false,"merged":[[1,0,1,5],[2,0,2,5],[4,0,5,0],[4,5,8,5],[6,0,7,0],[8,3,8,4],[21,0,21,3],[21,4,21,5],[9,0,9,5],[11,0,12,0],[11,5,15,5],[13,0,14,0],[15,3,15,4],[16,0,17,4],[18,0,18,5],[19,0,19,3],[19,4,19,5],[20,0,20,3],[20,4,20,5],[22,0,22,3],[22,4,22,5],[23,0,23,3],[23,4,23,5],[24,0,24,3],[24,4,24,5]]}
[]
["g) Información total sobre el presupuesto anual que administra la institución, especificando ingresos, gastos, financiamiento y resultados operativos de conformidad con los clasificadores presupuestales, así como liquidación del presupuesto, especificando destinatarios de entrega de recursos públicos"]
["Monto total del presupuesto anual 2017"]
["Tipo","Ingresos","Gastos","Financiamiento","Resultados operativos \n(% de gestión cumplida)","Link para descargar la cédula presupuestaria mensual a nivel de tipo de gasto"]
["Corriente",8819525,2305562.2800000003,"Fondos Fiscales",{"$f":"C5/B5","v":0.26141569755740818}," JUNIO -2017"]
[null,45533178,22202392.98,"Preasignaciónes",{"$f":"C6/B6","v":0.4876091227368316}]
["Inversión",3253069.98,657567.72,"Fondos Fiscales",{"$f":"C7/B7","v":0.20213758819907096}]
[null,0,0,"Crédito Interno / Externo",0]
["Total",{"$f":"SUM(B5:B8)","v":57605772.979999997},{"$f":"SUM(C5:C8)","v":25165522.98},{"$f":"C9/B9","v":0.4368576564146992}]
["Monto total del presupuesto anual liquidado (ejercicio fiscal 2016)"]
["Tipo","Ingresos","Gastos","Financiamiento","Resultados operativos \n(% de gestión cumplida)","Link para descargar el presupuesto anual liquidado"]
["Corriente",8659869.5700000003,7239173.3499999996,"Fondos Fiscales",{"$f":"C12/B12","v":0.83594484783908807},"presupuesto anual liquidado 2016"]
[null,45533178,45359549.560000002,"Preasignaciónes",{"$f":"C13/B13","v":0.99618677088605589}]
["Inversión",6249304.71,5090753.26,"Fondos Fiscales",{"$f":"C14/B14","v":0.81461114415718738}]
[null,0,0,"Crédito Interno / Externo",0]
["Total",{"$f":"SUM(B12:B15)","v":60442352.280000001},{"$f":"SUM(C12:C15)","v":57689476.170000002},{"$f":"C16/B16","v":0.95445451730191999}]
["Destinatario de entrega de recursos públicos",null,null,null,null,"Link para descargar el listado de destinatarios de recursos públicos"]
[null,null,null,null,null,"Destinatarios recursos públicos mensual"]
[]
["FECHA ACTUALIZACIÓN DE LA INFORMACIÓN:",null,null,null,"DD/MM/AAAA (04/07/2017)"]
["PERIODICIDAD DE ACTUALIZACIÓN DE LA INFORMACIÓN:",null,null,null,"JUNIO.2017"]
["UNIDAD POSEEDORA DE LA INFORMACIÓN - LITERAL g):",null,null,null,"DIRECCIÓN FINANIERA "]
["RESPONSABLE DE LA UNIDAD POSEEDORA DE LA INFORMACIÓN DEL LITERAL g):",null,null,null,"EC. ZAIDA HORMAZA MUÑOZ"]
["CORREO ELECTRÓNICO DEL O LA RESPONSABLE DE LA UNIDAD POSEEDORA DE LA INFORMACIÓN:",null,null,null,"zaida.hormaza@uleam.edu.ec"]
["NÚMERO TELEFÓNICO DEL O LA RESPONSABLE DE LA UNIDAD POSEEDORA DE LA INFORMACIÓN:",null,null,null,"(02) 622-744-EXTENSIÓN-252"]

{"sheet":"07-17","index":15,"n_rows":25,"n_cols":6,"rows_kept":25,"cut":false,"hidden":false,"merged":[[1,0,1,5],[2,0,2,5],[4,0,5,0],[4,5,8,5],[6,0,7,0],[8,3,8,4],[21,0,21,3],[21,4,21,5],[9,0,9,5],[11,0,12,0],[11,5,15,5],[13,0,14,0],[15,3,15,4],[16,0,17,4],[18,0,18,5],[19,0,19,3],[19,4,19,5],[20,0,20,3],[20,4,20,5],[22,0,22,3],[22,4,22,5],[23,0,23,3],[23,4,23,5],[24,0,24,3],[24,4,24,5]]}
[]
["g) Información total sobre el presupuesto anual que administra la institución, especificando ingresos, gastos, financiamiento y resultados operativos de conformidad con los clasificadores presupuestales, así como liquidación del presupuesto, especificando destinatarios de entrega de recursos públicos"]
["Monto total del presupuesto anual 2017"]
["Tipo","Ingresos","Gastos","Financiamiento","Resultados operativos \n(% de gestión cumplida)","Link para descargar la cédula presupuestaria mensual a nivel de tipo de gasto"]
["Corriente",8819525,3021707.6100000008,"Fondos Fiscales",{"$f":"C5/B5","v":0.34261568621892913}," JULIO -2017"]
[null,45533178,25637678.120000001,"Preasignaciónes",{"$f":"C6/B6","v":0.56305488099249301}]
["Inversión",3253069.98,1272391.7599999993,"Fondos Fiscales",{"$f":"C7/B7","v":0.39113568654308484}]
[null,0,0,"Crédito Interno / Externo",0]
["Total",{"$f":"SUM(B5:B8)","v":57605772.979999997},{"$f":"SUM(C5:C8)","v":29931777.489999998},{"$f":"C9/B9","v":0.51959683798344203}]
["Monto total del presupuesto anual liquidado (ejercicio fiscal 2016)"]
["Tipo","Ingresos","Gastos","Financiamiento","Resultados operativos \n(% de gestión cumplida)","Link para descargar el presupuesto anual liquidado"]
["Corriente",8659869.5700000003,7239173.3499999996,"Fondos Fiscales",{"$f":"C12/B12","v":0.83594484783908807},"presupuesto anual liquidado 2016"]
[null,45533178,45359549.560000002,"Preasignaciónes",{"$f":"C13/B13","v":0.99618677088605589}]
["Inversión",6249304.71,5090753.26,"Fondos Fiscales",{"$f":"C14/B14","v":0.81461114415718738}]
[null,0,0,"Crédito Interno / Externo",0]
["Total",{"$f":"SUM(B12:B15)","v":60442352.280000001},{"$f":"SUM(C12:C15)","v":57689476.170000002},{"$f":"C16/B16","v":0.95445451730191999}]
["Destinatario de entrega de recursos públicos",null,null,null,null,"Link para descargar el listado de destinatarios de recursos públicos"]
[null,null,null,null,null,"Destinatarios recursos públicos mensual"]
[]
["FECHA ACTUALIZACIÓN DE LA INFORMACIÓN:",null,null,null,"DD/MM/AAAA (07/08/2017)"]
["PERIODICIDAD DE ACTUALIZACIÓN DE LA INFORMACIÓN:",null,null,null,"JULIO.2017"]
["UNIDAD POSEEDORA DE LA INFORMACIÓN - LITERAL g):",null,null,null,"DIRECCIÓN FINANIERA "]
["RESPONSABLE DE LA UNIDAD POSEEDORA DE LA INFORMACIÓN DEL LITERAL g):",null,null,null,"EC. ZAIDA HORMAZA MUÑOZ"]
["CORREO ELECTRÓNICO DEL O LA RESPONSABLE DE LA UNIDAD POSEEDORA DE LA INFORMACIÓN:",null,null,null,"zaida.hormaza@uleam.edu.ec"]
["NÚMERO TELEFÓNICO DEL O LA RESPONSABLE DE LA UNIDAD POSEEDORA DE LA INFORMACIÓN:",null,null,null,"(02) 622-744-EXTENSIÓN-252"]

{"sheet":"08-17","index":16,"n_rows":25,"n_cols":6,"rows_kept":25,"cut":false,"hidden":false,"merged":[[22,0,22,3],[22,4,22,5],[23,0,23,3],[23,4,23,5],[24,0,24,3],[24,4,24,5],[21,0,21,3],[21,4,21,5],[9,0,9,5],[11,0,12,0],[11,5,15,5],[13,0,14,0],[15,3,15,4],[16,0,17,4],[18,0,18,5],[19,0,19,3],[19,4,19,5],[20,0,20,3],[20,4,20,5],[1,0,1,5],[2,0,2,5],[4,0,5,0],[4,5,8,5],[6,0,7,0],[8,3,8,4]]}
[]
["g) Información total sobre el presupuesto anual que administra la institución, especificando ingresos, gastos, financiamiento y resultados operativos de conformidad con los clasificadores presupuestales, así como liquidación del presupuesto, especificando destinatarios de entrega de recursos públicos"]
["Monto total del presupuesto anual 2017"]
["Tipo","Ingresos","Gastos","Financiamiento","Resultados operativos \n(% de gestión cumplida)","Link para descargar la cédula presupuestaria mensual a nivel de tipo de gasto"]
["Corriente",8819525,3816269.6799999997,"Fondos Fiscales",{"$f":"C5/B5","v":0.43270694056652709}," AGOSTO - 2017"]
[null,45533178,29243196.960000001,"Preasignaciónes",{"$f":"C6/B6","v":0.64223931305651449}]
["Inversión",3253069.98,1285959.9099999999,"Fondos Fiscales",{"$f":"C7/B7","v":0.39530656208016773}]
[null,0,0,"Crédito Interno / Externo",0]
["Total",{"$f":"SUM(B5:B8)","v":57605772.979999997},{"$f":"SUM(C5:C8)","v":34345426.549999997},{"$f":"C9/B9","v":0.59621501063659543}]
["Monto total del presupuesto anual liquidado (ejercicio fiscal 2016)"]
["Tipo","Ingresos","Gastos","Financiamiento","Resultados operativos \n(% de gestión cumplida)","Link para descargar el presupuesto anual liquidado"]
["Corriente",8659869.5700000003,7239173.3499999996,"Fondos Fiscales",{"$f":"C12/B12","v":0.83594484783908807},"presupuesto anual liquidado 2016"]
[null,45533178,45359549.560000002,"Preasignaciónes",{"$f":"C13/B13","v":0.99618677088605589}]
["Inversión",6249304.71,5090753.26,"Fondos Fiscales",{"$f":"C14/B14","v":0.81461114415718738}]
[null,0,0,"Crédito Interno / Externo",0]
["Total",{"$f":"SUM(B12:B15)","v":60442352.280000001},{"$f":"SUM(C12:C15)","v":57689476.170000002},{"$f":"C16/B16","v":0.95445451730191999}]
["Destinatario de entrega de recursos públicos",null,null,null,null,"Link para descargar el listado de destinatarios de recursos públicos"]
[null,null,null,null,null,"Destinatarios recursos públicos mensual"]
[]
["FECHA ACTUALIZACIÓN DE LA INFORMACIÓN:",null,null,null,"DD/MM/AAAA (07/08/2017)"]
["PERIODICIDAD DE ACTUALIZACIÓN DE LA INFORMACIÓN:",null,null,null,"AGOSTO.2017"]
["UNIDAD POSEEDORA DE LA INFORMACIÓN - LITERAL g):",null,null,null,"DIRECCIÓN FINANIERA "]
["RESPONSABLE DE LA UNIDAD POSEEDORA DE LA INFORMACIÓN DEL LITERAL g):",null,null,null,"EC. ZAIDA HORMAZA MUÑOZ"]
["CORREO ELECTRÓNICO DEL O LA RESPONSABLE DE LA UNIDAD POSEEDORA DE LA INFORMACIÓN:",null,null,null,"zaida.hormaza@uleam.edu.ec"]
["NÚMERO TELEFÓNICO DEL O LA RESPONSABLE DE LA UNIDAD POSEEDORA DE LA INFORMACIÓN:",null,null,null,"(02) 622-744-EXTENSIÓN-252"]

{"sheet":"09-17","index":17,"n_rows":25,"n_cols":6,"rows_kept":25,"cut":false,"hidden":false,"merged":[[22,0,22,3],[22,4,22,5],[23,0,23,3],[23,4,23,5],[24,0,24,3],[24,4,24,5],[21,0,21,3],[21,4,21,5],[9,0,9,5],[11,0,12,0],[11,5,15,5],[13,0,14,0],[15,3,15,4],[16,0,17,4],[18,0,18,5],[19,0,19,3],[19,4,19,5],[20,0,20,3],[20,4,20,5],[1,0,1,5],[2,0,2,5],[4,0,5,0],[4,5,8,5],[6,0,7,0],[8,3,8,4]]}
[]
["g) Información total sobre el presupuesto anual que administra la institución, especificando ingresos, gastos, financiamiento y resultados operativos de conformidad con los clasificadores presupuestales, así como liquidación del presupuesto, especificando destinatarios de entrega de recursos públicos"]
["Monto total del presupuesto anual 2017"]
["Tipo","Ingresos","Gastos","Financiamiento","Resultados operativos \n(% de gestión cumplida)","Link para descargar la cédula presupuestaria mensual a nivel de tipo de gasto"]
["Corriente",13716679.359999999,4608118.1099999994,"Fondos Fiscales",{"$f":"C5/B5","v":0.33594997659841774}," SEPTIEMBRE - 2017"]
[null,40677427.130000003,32669046.620000001,"Preasignaciónes",{"$f":"C6/B6","v":0.80312470391978796}]
["Inversión",3253069.98,1475017.65,"Fondos Fiscales",{"$f":"C7/B7","v":0.45342327680267114}]
[null,0,0,"Crédito Interno / Externo",0]
["Total",{"$f":"SUM(B5:B8)","v":57647176.469999999},{"$f":"SUM(C5:C8)","v":38752182.380000003},{"$f":"C9/B9","v":0.67223036327142427}]
["Monto total del presupuesto anual liquidado (ejercicio fiscal 2016)"]
["Tipo","Ingresos","Gastos","Financiamiento","Resultados operativos \n(% de gestión cumplida)","Link para descargar el presupuesto anual liquidado"]
["Corriente",8659869.5700000003,7239173.3499999996,"Fondos Fiscales",{"$f":"C12/B12","v":0.83594484783908807},"presupuesto anual liquidado 2016"]
[null,45533178,45359549.560000002,"Preasignaciónes",{"$f":"C13/B13","v":0.99618677088605589}]
["Inversión",6249304.71,5090753.26,"Fondos Fiscales",{"$f":"C14/B14","v":0.81461114415718738}]
[null,0,0,"Crédito Interno / Externo",0]
["Total",{"$f":"SUM(B12:B15)","v":60442352.280000001},{"$f":"SUM(C12:C15)","v":57689476.170000002},{"$f":"C16/B16","v":0.95445451730191999}]
["Destinatario de entrega de recursos públicos",null,null,null,null,"Link para descargar el listado de destinatarios de recursos públicos"]
[null,null,null,null,null,"Destinatarios recursos públicos mensual"]
[]
["FECHA ACTUALIZACIÓN DE LA INFORMACIÓN:",null,null,null,"DD/MM/AAAA (30/09/2017)"]
["PERIODICIDAD DE ACTUALIZACIÓN DE LA INFORMACIÓN:",null,null,null,"SEPTIEMBRE.2017"]
["UNIDAD POSEEDORA DE LA INFORMACIÓN - LITERAL g):",null,null,null,"DIRECCIÓN FINANIERA "]
["RESPONSABLE DE LA UNIDAD POSEEDORA DE LA INFORMACIÓN DEL LITERAL g):",null,null,null,"EC. ZAIDA HORMAZA MUÑOZ"]
["CORREO ELECTRÓNICO DEL O LA RESPONSABLE DE LA UNIDAD POSEEDORA DE LA INFORMACIÓN:",null,null,null,"zaida.hormaza@uleam.edu.ec"]
["NÚMERO TELEFÓNICO DEL O LA RESPONSABLE DE LA UNIDAD POSEEDORA DE LA INFORMACIÓN:",null,null,null,"(02) 622-744-EXTENSIÓN-252"]

{"sheet":"10-17","index":18,"n_rows":25,"n_cols":6,"rows_kept":25,"cut":false,"hidden":false,"merged":[[22,0,22,3],[22,4,22,5],[23,0,23,3],[23,4,23,5],[24,0,24,3],[24,4,24,5],[21,0,21,3],[21,4,21,5],[9,0,9,5],[11,0,12,0],[11,5,15,5],[13,0,14,0],[15,3,15,4],[16,0,17,4],[18,0,18,5],[19,0,19,3],[19,4,19,5],[20,0,20,3],[20,4,20,5],[1,0,1,5],[2,0,2,5],[4,0,5,0],[4,5,8,5],[6,0,7,0],[8,3,8,4]]}
[]
["g) Información total sobre el presupuesto anual que administra la institución, especificando ingresos, gastos, financiamiento y resultados operativos de conformidad con los clasificadores presupuestales, así como liquidación del presupuesto, especificando destinatarios de entrega de recursos públicos"]
["Monto total del presupuesto anual 2017"]
["Tipo","Ingresos","Gastos","Financiamiento","Resultados operativos \n(% de gestión cumplida)","Link para descargar la cédula presupuestaria mensual a nivel de tipo de gasto"]
["Corriente",13716679.359999999,5323956.05,"Fondos Fiscales",{"$f":"C5/B5","v":0.38813738444054435}," OCTUBRE - 2017"]
[null,40677427.130000003,36086964.399999999,"Preasignaciónes",{"$f":"C6/B6","v":0.88714962931825914}]
["Inversión",3317055.95,1837696.8800000001,"Fondos Fiscales",{"$f":"C7/B7","v":0.55401443560214891}]
[null,0,0,"Crédito Interno / Externo",0]
["Total",{"$f":"SUM(B5:B8)","v":57711162.440000005},{"$f":"SUM(C5:C8)","v":43248617.329999998},{"$f":"C9/B9","v":0.74939778547978242}]
["Monto total del presupuesto anual liquidado (ejercicio fiscal 2016)"]
["Tipo","Ingresos","Gastos","Financiamiento","Resultados operativos \n(% de gestión cumplida)","Link para descargar el presupuesto anual liquidado"]
["Corriente",13716679.359999999,5323956.05,"Fondos Fiscales",{"$f":"C12/B12","v":0.38813738444054435},"presupuesto anual liquidado 2016"]
[null,40677427.130000003,36086964.399999999,"Preasignaciónes",{"$f":"C13/B13","v":0.88714962931825914}]
["Inversión",3317055.95,2056017.57,"Fondos Fiscales",{"$f":"C14/B14","v":0.6198320441354026}]
[null,0,0,"Crédito Interno / Externo",0]
["Total",{"$f":"SUM(B12:B15)","v":57711162.440000005},{"$f":"SUM(C12:C15)","v":43466938.019999996},{"$f":"C16/B16","v":0.75318077443321019}]
["Destinatario de entrega de recursos públicos",null,null,null,null,"Link para descargar el listado de destinatarios de recursos públicos"]
[null,null,null,null,null,"Destinatarios recursos públicos mensual"]
[]
["FECHA ACTUALIZACIÓN DE LA INFORMACIÓN:",null,null,null,"DD/MM/AAAA (31/10/2017)"]
["PERIODICIDAD DE ACTUALIZACIÓN DE LA INFORMACIÓN:",null,null,null,"OCTUBRE.2017"]
["UNIDAD POSEEDORA DE LA INFORMACIÓN - LITERAL g):",null,null,null,"DIRECCIÓN FINANIERA "]
["RESPONSABLE DE LA UNIDAD POSEEDORA DE LA INFORMACIÓN DEL LITERAL g):",null,null,null,"EC. ZAIDA HORMAZA MUÑOZ"]
["CORREO ELECTRÓNICO DEL O LA RESPONSABLE DE LA UNIDAD POSEEDORA DE LA INFORMACIÓN:",null,null,null,"zaida.hormaza@uleam.edu.ec"]
["NÚMERO TELEFÓNICO DEL O LA RESPONSABLE DE LA UNIDAD POSEEDORA DE LA INFORMACIÓN:",null,null,null,"(02) 622-744-EXTENSIÓN-252"]

{"sheet":"11-17","index":19,"n_rows":25,"n_cols":8,"rows_kept":25,"cut":false,"hidden":false,"merged":[[1,0,1,5],[2,0,2,5],[4,0,5,0],[4,5,8,5],[6,0,7,0],[8,3,8,4],[21,0,21,3],[21,4,21,5],[9,0,9,5],[11,0,12,0],[11,5,15,5],[13,0,14,0],[15,3,15,4],[16,0,17,4],[18,0,18,5],[19,0,19,3],[19,4,19,5],[20,0,20,3],[20,4,20,5],[22,0,22,3],[22,4,22,5],[23,0,23,3],[23,4,23,5],[24,0,24,3],[24,4,24,5]]}
[]
["g) Información total sobre el presupuesto anual que administra la institución, especificando ingresos, gastos, financiamiento y resultados operativos de conformidad con los clasificadores presupuestales, así como liquidación del presupuesto, especificando destinatarios de entrega de recursos públicos"]
["Monto total del presupuesto anual 2017"]
["Tipo","Ingresos","Gastos","Financiamiento","Resultados operativos \n(% de gestión cumplida)","Link para descargar la cédula presupuestaria mensual a nivel de tipo de gasto","INGRESOS","GASTOS"]
["Corriente",13716679.359999999,6242737.6799999997,"Fondos Fiscales",{"$f":"C5/B5","v":0.45512018733956905}," NOVIEMBRE - 2017",9402372.3699999992,8298755.25]
[null,40677427.130000003,39531065.579999998,"Preasignaciónes",{"$f":"C6/B6","v":0.97181823849536064},null,3663514.25,154250.73000000001]
["Inversión",3663514.25,2056017.57,"Fondos Fiscales",{"$f":"C7/B7","v":0.56121456877095544},null,{"$f":"G5+G6","v":13065886.619999999},1449487.87]
[null,0,0,"Crédito Interno / Externo",0,null,null,452278.97]
["Total",{"$f":"SUM(B5:B8)","v":58057620.740000002},{"$f":"SUM(C5:C8)","v":47829820.829999998},{"$f":"C9/B9","v":0.82383363665894516},null,null,null,{"$f":"H5-H6-H7-H8","v":6242737.6799999997}]
["Monto total del presupuesto anual liquidado (ejercicio fiscal 2016)",null,null,null,null,null,null,{"$f":"C5-H9","v":0}]
["Tipo","Ingresos","Gastos","Financiamiento","Resultados operativos \n(% de gestión cumplida)","Link para descargar el presupuesto anual liquidado",null,6258473.6799999997]
["Corriente",8659869.5700000003,7239173.3499999996,"Fondos Fiscales",{"$f":"C12/B12","v":0.83594484783908807},"presupuesto anual liquidado 2016",null,39531065.579999998]
[null,45533178,45359549.560000002,"Preasignaciónes",{"$f":"C13/B13","v":0.99618677088605589},null,null,{"$f":"SUM(H6:H8)","v":2056017.57}]
["Inversión",6249304.71,5090753.26,"Fondos Fiscales",{"$f":"C14/B14","v":0.81461114415718738},null,null,{"$f":"H9+H12+H13","v":47829820.829999998}]
[null,0,0,"Crédito Interno / Externo",0]
["Total",{"$f":"SUM(B12:B15)","v":60442352.280000001},{"$f":"SUM(C12:C15)","v":57689476.170000002},{"$f":"C16/B16","v":0.95445451730191999}]
["Destinatario de entrega de recursos públicos",null,null,null,null,"Link para descargar el listado de destinatarios de recursos públicos"]
[null,null,null,null,null,"Destinatarios recursos públicos mensual"]
[]
["FECHA ACTUALIZACIÓN DE LA INFORMACIÓN:",null,null,null,"DD/MM/AAAA (31/11/2017)"]
["PERIODICIDAD DE ACTUALIZACIÓN DE LA INFORMACIÓN:",null,null,null,"NOVIEMBRE.2017"]
["UNIDAD POSEEDORA DE LA INFORMACIÓN - LITERAL g):",null,null,null,"DIRECCIÓN FINANIERA "]
["RESPONSABLE DE LA UNIDAD POSEEDORA DE LA INFORMACIÓN DEL LITERAL g):",null,null,null,"EC. ZAIDA HORMAZA MUÑOZ"]
["CORREO ELECTRÓNICO DEL O LA RESPONSABLE DE LA UNIDAD POSEEDORA DE LA INFORMACIÓN:",null,null,null,"zaida.hormaza@uleam.edu.ec"]
["NÚMERO TELEFÓNICO DEL O LA RESPONSABLE DE LA UNIDAD POSEEDORA DE LA INFORMACIÓN:",null,null,null,"(02) 622-744-EXTENSIÓN-252"]

{"sheet":"12-17","index":20,"n_rows":25,"n_cols":6,"rows_kept":25,"cut":false,"hidden":false,"merged":[[22,0,22,3],[22,4,22,5],[23,0,23,3],[23,4,23,5],[24,0,24,3],[24,4,24,5],[21,0,21,3],[21,4,21,5],[9,0,9,5],[11,0,12,0],[11,5,15,5],[13,0,14,0],[15,3,15,4],[16,0,17,4],[18,0,18,5],[19,0,19,3],[19,4,19,5],[20,0,20,3],[20,4,20,5],[1,0,1,5],[2,0,2,5],[4,0,5,0],[4,5,8,5],[6,0,7,0],[8,3,8,4]]}
[]
["g) Información total sobre el presupuesto anual que administra la institución, especificando ingresos, gastos, financiamiento y resultados operativos de conformidad con los clasificadores presupuestales, así como liquidación del presupuesto, especificando destinatarios de entrega de recursos públicos"]
["Monto total del presupuesto anual 2017"]
["Tipo","Ingresos","Gastos","Financiamiento","Resultados operativos \n(% de gestión cumplida)","Link para descargar la cédula presupuestaria mensual a nivel de tipo de gasto"]
["Corriente",13716679.359999999,10130867.619999999,"Fondos Fiscales",{"$f":"C5/B5","v":0.73858018796759273},".DICIEMBRE - 2017"]
[null,43812345.100000001,43780162.710000001,"Preasignaciónes",{"$f":"C6/B6","v":0.99926544927173966}]
["Inversión",3663514.25,2995653.8200000003,"Fondos Fiscales",{"$f":"C7/B7","v":0.81769951352038561}]
[null,0,0,"Crédito Interno / Externo",0]
["Total",{"$f":"SUM(B5:B8)","v":61192538.710000001},{"$f":"SUM(C5:C8)","v":56906684.149999999},{"$f":"C9/B9","v":0.92996115784129718}]
["Monto total del presupuesto anual liquidado (ejercicio fiscal 2016)"]
["Tipo","Ingresos","Gastos","Financiamiento","Resultados operativos \n(% de gestión cumplida)","Link para descargar el presupuesto anual liquidado"]
["Corriente",8659869.5700000003,7239173.3499999996,"Fondos Fiscales",{"$f":"C12/B12","v":0.83594484783908807},"presupuesto anual liquidado 2016"]
[null,45533178,45359549.560000002,"Preasignaciónes",{"$f":"C13/B13","v":0.99618677088605589}]
["Inversión",6249304.71,5090753.26,"Fondos Fiscales",{"$f":"C14/B14","v":0.81461114415718738}]
[null,0,0,"Crédito Interno / Externo",0]
["Total",{"$f":"SUM(B12:B15)","v":60442352.280000001},{"$f":"SUM(C12:C15)","v":57689476.170000002},{"$f":"C16/B16","v":0.95445451730191999}]
["Destinatario de entrega de recursos públicos",null,null,null,null,"Link para descargar el listado de destinatarios de recursos públicos"]
[null,null,null,null,null,"Destinatarios recursos públicos mensual"]
[]
["FECHA ACTUALIZACIÓN DE LA INFORMACIÓN:",null,null,null,"DD/MM/AAAA (31/12/2017)"]
["PERIODICIDAD DE ACTUALIZACIÓN DE LA INFORMACIÓN:",null,null,null,"DICIEMBRE.2017"]
["UNIDAD POSEEDORA DE LA INFORMACIÓN - LITERAL g):",null,null,null,"DIRECCIÓN FINANIERA "]
["RESPONSABLE DE LA UNIDAD POSEEDORA DE LA INFORMACIÓN DEL LITERAL g):",null,null,null,"EC. ZAIDA HORMAZA MUÑOZ"]
["CORREO ELECTRÓNICO DEL O LA RESPONSABLE DE LA UNIDAD POSEEDORA DE LA INFORMACIÓN:",null,null,null,"zaida.hormaza@uleam.edu.ec"]
["NÚMERO TELEFÓNICO DEL O LA RESPONSABLE DE LA UNIDAD POSEEDORA DE LA INFORMACIÓN:",null,null,null,"(02) 622-744-EXTENSIÓN-252"]

{"sheet":"08-18","index":21,"n_rows":33,"n_cols":6,"rows_kept":33,"cut":false,"hidden":false,"merged":[[28,0,28,3],[28,4,28,5],[29,0,29,3],[29,4,29,5],[30,0,30,3],[30,4,30,5],[27,0,27,3],[27,4,27,5],[15,0,15,5],[17,0,18,0],[17,5,21,5],[19,0,20,0],[21,3,21,4],[22,0,23,4],[24,0,24,5],[25,0,25,3],[25,4,25,5],[26,0,26,3],[26,4,26,5],[7,0,7,5],[8,0,8,5],[10,0,11,0],[10,5,14,5],[12,0,13,0],[14,3,14,4]]}
[]
[]
[]
[]
[]
[]
[]
["g) Información total sobre el presupuesto anual que administra la institución, especificando ingresos, gastos, financiamiento y resultados operativos de conformidad con los clasificadores presupuestales, así como liquidación del presupuesto, especificando destinatarios de entrega de recursos públicos"]
["Monto total del presupuesto anual 2018"]
["Tipo","Ingresos","Gastos","Financiamiento","Resultados operativos \n(% de gestión cumplida)","Link para descargar la cédula presupuestaria mensual a nivel de tipo de gasto"]
["Corriente",13344009.359999999,5068688.63,"Fondos Fiscales",{"$f":"C11/B11","v":0.37984750259497718},"CÉDULAS PRESUPUESTARIAS DE GASTOS DEL MES DE AGOSTO 2018"]
[null,45309728,28382280.530000001,"Preasignaciónes",{"$f":"C12/B12","v":0.62640589080561249}]
["Inversión",3042622.05,1884386,"Fondos Fiscales",{"$f":"C13/B13","v":0.61932963379398376}]
[null,0,0,"Crédito Interno / Externo",0]
["Total",{"$f":"SUM(B11:B14)","v":61696359.409999996},{"$f":"SUM(C11:C14)","v":35335355.159999996},{"$f":"C15/B15","v":0.57272998760235927}]
["Monto total del presupuesto anual liquidado (ejercicio fiscal 2016)"]
["Tipo","Ingresos","Gastos","Financiamiento","Resultados operativos \n(% de gestión cumplida)","Link para descargar el presupuesto anual liquidado"]
["Corriente",13716679.359999999,10130867.619999999,"Fondos Fiscales",{"$f":"C18/B18","v":0.73858018796759273},"presupuesto anual liquidado 2017"]
[null,43812345.100000001,43780162.710000001,"Preasignaciónes",{"$f":"C19/B19","v":0.99926544927173966}]
["Inversión",3663514.25,2995653.8200000003,"Fondos Fiscales",{"$f":"C20/B20","v":0.81769951352038561}]
[null,0,0,"Crédito Interno / Externo",0]
["Total",{"$f":"SUM(B18:B21)","v":61192538.710000001},{"$f":"SUM(C18:C21)","v":56906684.149999999},{"$f":"C22/B22","v":0.92996115784129718}]
["Destinatario de entrega de recursos públicos",null,null,null,null,"Link para descargar el listado de destinatarios de recursos públicos"]
[null,null,null,null,null,"Destinatarios recursos públicos mensual"]
[]
["FECHA ACTUALIZACIÓN DE LA INFORMACIÓN:",null,null,null,"2018-08-31"]
["PERIODICIDAD DE ACTUALIZACIÓN DE LA INFORMACIÓN:",null,null,null,"MENSUAL"]
["UNIDAD POSEEDORA DE LA INFORMACIÓN - LITERAL g):",null,null,null,"DIRECCIÓN FINANIERA "]
["RESPONSABLE DE LA UNIDAD POSEEDORA DE LA INFORMACIÓN DEL LITERAL g):",null,null,null,"EC. ZAIDA HORMAZA MUÑOZ"]
["CORREO ELECTRÓNICO DEL O LA RESPONSABLE DE LA UNIDAD POSEEDORA DE LA INFORMACIÓN:",null,null,null,"zaida.hormaza@uleam.edu.ec"]
["NÚMERO TELEFÓNICO DEL O LA RESPONSABLE DE LA UNIDAD POSEEDORA DE LA INFORMACIÓN:",null,null,null,"(02) 622-744-EXTENSIÓN-252"]
[]
[null,"UNIVERSIDAD LAICA ELOY ALFARO DE MANABI",null,null,"Literal g(Presupuesto de la  Institucion( 1)"]

{"sheet":"09-18","index":22,"n_rows":34,"n_cols":6,"rows_kept":34,"cut":false,"hidden":false,"merged":[[8,0,8,5],[9,0,9,5],[11,0,12,0],[11,5,15,5],[13,0,14,0],[15,3,15,4],[28,0,28,3],[28,4,28,5],[16,0,16,5],[18,0,19,0],[18,5,22,5],[20,0,21,0],[22,3,22,4],[23,0,24,4],[25,0,25,5],[26,0,26,3],[26,4,26,5],[27,0,27,3],[27,4,27,5],[29,0,29,3],[29,4,29,5],[30,0,30,3],[30,4,30,5],[31,0,31,3],[31,4,31,5]]}
[]
[]
[]
[]
[]
[]
[]
[]
["g) Información total sobre el presupuesto anual que administra la institución, especificando ingresos, gastos, financiamiento y resultados operativos de conformidad con los clasificadores presupuestales, así como liquidación del presupuesto, especificando destinatarios de entrega de recursos públicos"]
["Monto total del presupuesto anual 2018"]
["Tipo","Ingresos","Gastos","Financiamiento","Resultados operativos \n(% de gestión cumplida)","Link para descargar la cédula presupuestaria mensual a nivel de tipo de gasto"]
["Corriente",13344009.359999999,6194133.5500000007,"Fondos Fiscales",{"$f":"C12/B12","v":0.46418833971801121},"CÉDULA PRESUPUESTARIA DE GASTOS SEPTIEMBRE 2018"]
[null,45309728,31893397.890000001,"Preasignaciónes",{"$f":"C13/B13","v":0.70389735930438602}]
["Inversión",3042622.05,2215164.25,"Fondos Fiscales",{"$f":"C14/B14","v":0.72804450030196821}]
[null,0,0,"Crédito Interno / Externo",0]
["Total",{"$f":"SUM(B12:B15)","v":61696359.409999996},{"$f":"SUM(C12:C15)","v":40302695.689999998},{"$f":"C16/B16","v":0.65324268847324518}]
["Monto total del presupuesto anual liquidado (ejercicio fiscal 2016)"]
["Tipo","Ingresos","Gastos","Financiamiento","Resultados operativos \n(% de gestión cumplida)","Link para descargar el presupuesto anual liquidado"]
["Corriente",13716679.359999999,10130867.619999999,"Fondos Fiscales",{"$f":"C19/B19","v":0.73858018796759273},"presupuesto anual liquidado 2017"]
[null,43812345.100000001,43780162.710000001,"Preasignaciónes",{"$f":"C20/B20","v":0.99926544927173966}]
["Inversión",3663514.25,2995653.8200000003,"Fondos Fiscales",{"$f":"C21/B21","v":0.81769951352038561}]
[null,0,0,"Crédito Interno / Externo",0]
["Total",{"$f":"SUM(B19:B22)","v":61192538.710000001},{"$f":"SUM(C19:C22)","v":56906684.149999999},{"$f":"C23/B23","v":0.92996115784129718}]
["Destinatario de entrega de recursos públicos",null,null,null,null,"Link para descargar el listado de destinatarios de recursos públicos"]
[null,null,null,null,null,"Destinatarios recursos públicos mensual"]
[]
["FECHA ACTUALIZACIÓN DE LA INFORMACIÓN:",null,null,null,"2018-09-30"]
["PERIODICIDAD DE ACTUALIZACIÓN DE LA INFORMACIÓN:",null,null,null,"MENSUAL"]
["UNIDAD POSEEDORA DE LA INFORMACIÓN - LITERAL g):",null,null,null,"DIRECCIÓN FINANIERA "]
["RESPONSABLE DE LA UNIDAD POSEEDORA DE LA INFORMACIÓN DEL LITERAL g):",null,null,null,"EC. ZAIDA HORMAZA MUÑOZ"]
["CORREO ELECTRÓNICO DEL O LA RESPONSABLE DE LA UNIDAD POSEEDORA DE LA INFORMACIÓN:",null,null,null,"zaida.hormaza@uleam.edu.ec"]
["NÚMERO TELEFÓNICO DEL O LA RESPONSABLE DE LA UNIDAD POSEEDORA DE LA INFORMACIÓN:",null,null,null,"(02) 622-744-EXTENSIÓN-252"]
[]
[null,"UNIVERSIDAD LAICA ELOY ALFARO DE MANABI",null,null,"Literal g(Presupuesto de la Institución ( 1)"]